bitfinex/quotes_SOLUSD_20240902
["timestamp","ask_amount","ask_price","bid_price","bid_amount"]
[1725287983144,7.5222,132.94,132.91,1.50452903]
[1725287983331,7.5217,132.95,132.91,1.50452903]
[1725287983743,7.5217,132.95,132.9,57.5243]
[1725287984430,7.5223,132.94,132.9,57.5243]
[1725287985258,7.5223,132.94,132.9,50.0]
[1725287985429,7.5223,132.94,132.91,1.50455956]
[1725287985948,7.5223,132.94,132.9,50.0]
[1725287985949,0.73299298,132.93,132.88,76.3385]
[1725287986243,0.73299298,132.96,132.92,50.0]
[1725287986632,0.73299298,132.97,132.92,50.0]
[1725287986826,0.73299298,132.99,132.91,1.50412145]
[1725287987028,47.52628969,132.96,132.88,50.0]
[1725287987243,47.52628969,132.96,132.9,50.0]
[1725287987244,7.5227,132.93,132.9,50.0]
[1725287987448,7.5233,132.92,132.9,50.0]
[1725287987623,7.5233,132.92,132.88,50.0]
[1725287988153,7.5238,132.92,132.88,50.0]
[1725287988456,7.5228,132.93,132.88,57.5254]
[1725287988935,7.5228,132.93,132.89,7.5249]
[1725287989334,7.5228,132.93,132.88,57.5254]
[1725287989533,0.73299298,132.97,132.92,50.0]
[1725287989734,0.73299298,132.97,132.89,50.0]
[1725287989950,0.73299298,132.97,132.9,1.50443474]
[1725287990156,7.5237,132.92,132.89,50.0]
[1725287990667,7.5239,132.91,132.86,57.5266]
[1725287991146,7.5245,132.9,132.86,57.5266]
[1725287991350,7.5239,132.91,132.87,1.50508337]
[1725287991662,7.5239,132.91,132.88,50.0]
[1725287992343,7.5239,132.91,132.86,57.5262]
[1725287992661,7.5234,132.92,132.89,50.0]
[1725287992834,7.5228,132.93,132.89,50.0]
[1725287993156,7.5228,132.93,132.91,50.0]
[1725287993461,7.5228,132.93,132.89,7.5249]
[1725287993462,7.5228,132.93,132.89,50.0]
[1725287993760,7.5225,132.94,132.91,50.0]
[1725287993955,7.5219,132.95,132.91,68.8089]
[1725287994950,0.73299298,132.96,132.89,50.0]
[1725287995558,7.5232,132.93,132.89,50.0]
[1725287995747,7.5237,132.92,132.89,50.0]
[1725287995967,7.5228,132.93,132.89,50.0]
[1725287996251,7.5235,132.92,132.87,76.3405]
[1725287996430,7.5235,132.92,132.89,50.0]
[1725287996635,7.5228,132.93,132.89,50.0]
[1725287997650,7.5223,132.94,132.91,50.0]
[1725287997853,7.5223,132.94,132.89,68.8119]
[1725287998261,7.5223,132.94,132.89,76.3366]
[1725287998445,0.73299298,132.96,132.91,50.0]
[1725287998648,7.5225,132.94,132.91,50.0]
[1725287998953,7.5228,132.93,132.89,76.3366]
[1725287999958,7.5237,132.92,132.89,50.0]
[1725288000156,0.73299298,132.92,132.87,50.0]
[1725288000389,0.12549,132.94,132.87,51.50489363]
[1725288000569,0.25098,132.94,132.87,51.50489363]
[1725288000776,18.8075,132.93,132.85,50.0]
[1725288000956,7.5248,132.9,132.87,50.0]
[1725288001139,0.73299298,132.95,132.89,50.0]
[1725288001343,7.5231,132.93,132.9,1.50459804]
[1725288002058,0.73299298,132.98,132.93,50.0]
[1725288002365,7.5217,132.95,132.91,76.3326]
[1725288002559,25.4142,133.0,132.85,76.3449]
[1725288002560,7.5249,132.9,132.85,76.3449]
[1725288002744,0.73299298,132.89,132.83,50.8588224]
[1725288002949,7.5268,132.86,132.83,0.8588224]
[1725288003151,0.73299298,132.85,132.83,0.8588224]
[1725288003353,7.5277,132.85,132.83,0.8588224]
[1725288003676,0.12549,132.87,132.83,0.8588224]
[1725288003965,0.25098,132.87,132.83,0.8588224]
[1725288004172,7.5278,132.84,132.83,0.8588224]
[1725288005575,7.5277,132.85,132.83,0.8588224]
[1725288006070,7.5278,132.84,132.83,0.8588224]
[1725288006649,7.5273,132.85,132.83,0.8588224]
[1725288007374,8.25909298,132.88,132.83,50.8588224]
[1725288007553,7.5261,132.88,132.84,1.50524171]
[1725288007892,8.25739298,132.91,132.86,7.5267]
[1725288008080,18.8058,132.94,132.85,76.3446]
[1725288008081,7.5244,132.9,132.85,76.3446]
[1725288008379,0.73299298,132.93,132.86,1.50500886]
[1725288008555,7.5249,132.9,132.85,76.3446]
[1725288008869,0.73299298,132.89,132.83,0.8588224]
[1725288009077,0.73299298,132.89,132.83,8.3871224]
[1725288009471,7.5257,132.88,132.83,9.89256221]
[1725288009771,7.5271,132.86,132.83,0.8588224]
[1725288009973,44.0635,132.95,132.84,50.0]
[1725288010150,7.5251,132.89,132.85,1.50518767]
[1725288010357,7.5251,132.89,132.84,57.5273]
[1725288010779,7.5251,132.89,132.85,1.50515551]
[1725288011279,7.5244,132.9,132.86,50.0]
[1725288011465,0.73299298,132.92,132.86,50.0]
[1725288011466,8.25679298,132.92,132.87,1.50487673]
[1725288011679,0.73299298,132.92,132.87,1.50487673]
[1725288011992,47.52628969,132.91,132.84,50.0]
[1725288012168,0.73299298,132.9,132.84,50.0]
[1725288012561,7.526,132.88,132.83,27.2071224]
[1725288012768,7.5261,132.87,132.83,19.6789224]
[1725288013164,7.5278,132.84,132.83,0.8588224]
[1725288014488,7.65329,132.84,132.83,0.8588224]
[1725288014783,7.77878,132.84,132.83,0.8588224]
[1725288014982,7.5274,132.85,132.83,0.8588224]
[1725288015182,66.33958969,132.89,132.83,0.8588224]
[1725288015183,0.73299298,132.91,132.86,50.0]
[1725288015367,7.5248,132.9,132.86,50.0]
[1725288015567,0.73299298,132.91,132.86,51.50500926]
[1725288015773,7.5245,132.9,132.86,59.03160926]
[1725288015977,7.524,132.91,132.88,50.0]
[1725288016157,0.73299298,132.92,132.86,20.32110926]
[1725288016158,0.73299298,132.92,132.86,7.5263]
[1725288016360,18.8094,132.92,132.85,57.5272]
[1725288016560,18.8094,132.92,132.87,51.50501872]
[1725288016561,7.5246,132.9,132.87,51.50501872]
[1725288016765,0.73299298,132.93,132.89,50.0]
[1725288016976,7.5229,132.93,132.89,50.0]
[1725288017175,21.9236,132.97,132.85,26.3447]
[1725288017176,0.73299298,132.92,132.85,26.3447]
[1725288017382,0.73299298,132.92,132.87,50.0]
[1725288017383,7.524,132.91,132.87,50.0]
[1725288017573,7.5245,132.9,132.86,7.5263]
[1725288017772,7.525,132.89,132.85,26.3447]
[1725288017977,7.525,132.89,132.85,68.8176]
[1725288018175,7.525,132.89,132.85,18.8176]
[1725288018386,8.25859298,132.88,132.84,6.0878]
[1725288018592,8.25859298,132.88,132.83,50.8588224]
[1725288018593,7.5264,132.87,132.83,50.8588224]
[1725288018765,0.73299298,132.88,132.85,50.0]
[1725288018766,7.5257,132.88,132.85,50.0]
[1725288019162,0.73299298,132.91,132.86,1.50514024]
[1725288019368,56.4151,132.95,132.87,50.0]
[1725288019369,0.73299298,132.94,132.87,50.0]
[1725288019662,0.73299298,132.94,132.88,18.8132]
[1725288019882,7.5239,132.91,132.87,50.0]
[1725288020189,0.73299298,132.94,132.85,68.8172]
[1725288020190,0.73299298,132.9,132.85,68.8172]
[1725288020496,47.52628969,132.94,132.83,0.8588224]
[1725288020497,7.5268,132.86,132.83,50.8588224]
[1725288020674,47.52628969,132.88,132.83,0.8588224]
[1725288020873,0.12549,132.87,132.83,0.8588224]
[1725288021069,7.5278,132.84,132.83,0.8588224]
[1725288021287,7.5268,132.86,132.83,0.8588224]
[1725288021691,0.73299298,132.85,132.83,0.8588224]
[1725288021992,7.5278,132.84,132.83,0.8588224]
[1725288022402,7.65329,132.84,132.83,0.8588224]
[1725288023273,55.43055969,132.84,132.83,0.8588224]
[1725288023593,55.43055969,132.84,132.72,50.0]
[1725288023594,7.5324,132.76,132.72,50.0]
[1725288024194,7.5318,132.77,132.72,57.5343]
[1725288025411,8.26539298,132.76,132.71,7.5351]
[1725288025574,0.73299298,132.75,132.71,7.5351]
[1725288025771,7.5335,132.74,132.7,69.6977224]
[1725288026172,7.5341,132.73,132.7,0.8588224]
[1725288026498,7.5352,132.71,132.7,0.8588224]
[1725288027004,0.73299298,132.75,132.7,0.8588224]
[1725288027306,7.5335,132.74,132.71,50.0]
[1725288027489,0.73299298,132.73,132.7,0.8588224]
[1725288027794,0.12549,132.75,132.7,0.8588224]
[1725288028001,7.5347,132.72,132.7,0.8588224]
[1725288028579,8.26819298,132.71,132.7,0.8588224]
[1725288028791,7.5347,132.72,132.7,0.8588224]
[1725288028985,7.5352,132.71,132.7,0.8588224]
[1725288029402,7.78618,132.71,132.7,0.8588224]
[1725288029804,7.91167,132.71,132.7,0.8588224]
[1725288030109,8.64466298,132.71,132.7,0.8588224]
[1725288030290,53.77015298,132.71,132.7,2.24e-05]
[1725288030491,73.77015298,132.71,132.7,2.24e-05]
[1725288030695,19.69928298,132.7,132.61,1.50789718]
[1725288030992,0.12549,132.65,132.57,0.8588224]
[1725288031196,45.85848298,132.65,132.57,50.8588224]
[1725288031377,45.85848298,132.65,132.59,50.0]
[1725288031578,1.23299298,132.64,132.59,50.0]
[1725288031780,6.4611,132.66,132.6,1.50802725]
[1725288032003,7.5387,132.65,132.61,50.0]
[1725288032200,7.5381,132.66,132.62,1.50782479]
[1725288032402,7.5375,132.67,132.63,50.0]
[1725288032580,1.23299298,132.7,132.66,50.0]
[1725288032892,1.23299298,132.72,132.64,57.5391]
[1725288033083,1.23299298,132.72,132.62,18.8496]
[1725288033084,7.5374,132.68,132.63,7.5396]
[1725288033284,7.5364,132.69,132.64,57.5391]
[1725288034203,7.5375,132.67,132.62,76.3899]
[1725288034518,7.537,132.68,132.63,7.5397]
[1725288034883,8.76889298,132.7,132.65,7.5385]
[1725288035211,7.5364,132.69,132.64,76.3863]
[1725288035432,1.23299298,132.71,132.64,68.8472]
[1725288035710,1.23299298,132.71,132.66,50.0]
[1725288035908,1.23299298,132.73,132.68,50.0]
[1725288036106,1.23299298,132.73,132.69,1.50698896]
[1725288036686,8.76709298,132.73,132.69,1.50698896]
[1725288036890,8.76599298,132.75,132.7,57.5357]
[1725288037093,1.23299298,132.76,132.7,68.8387]
[1725288037606,1.23299298,132.76,132.68,50.0]
[1725288037809,1.23299298,132.76,132.7,50.0]
[1725288037987,1.23299298,132.76,132.67,50.0]
[1725288038187,7.5341,132.73,132.68,7.5366]
[1725288039315,7.5357,132.71,132.66,26.3823]
[1725288039489,1.35848298,132.72,132.66,18.8444]
[1725288039490,8.76899298,132.7,132.66,18.8444]
[1725288039690,8.76899298,132.7,132.65,57.5385]
[1725288039691,1.23299298,132.7,132.65,50.0]
[1725288039903,7.5359,132.7,132.66,1.50723252]
[1725288040096,7.5359,132.7,132.65,7.5381]
[1725288040097,1.23299298,132.69,132.65,7.5381]
[1725288040296,1.23299298,132.69,132.65,57.5381]
[1725288040499,7.5359,132.7,132.65,57.5381]
[1725288040706,7.5359,132.7,132.63,18.8486]
[1725288040707,7.5359,132.7,132.67,50.0]
[1725288041398,1.23299298,132.72,132.68,1.50722641]
[1725288041726,20.06419298,132.76,132.69,50.0]
[1725288041929,7.5339,132.74,132.69,57.5363]
[1725288042120,1.23299298,132.73,132.68,18.8415]
[1725288042317,7.5359,132.7,132.65,76.3843]
[1725288042833,18.8345,132.74,132.67,50.0]
[1725288043140,7.5339,132.74,132.69,57.5362]
[1725288043309,7.5339,132.74,132.7,1.50688464]
[1725288043512,1.23299298,132.76,132.71,50.0]
[1725288043722,1.23299298,132.83,132.79,57.5306]
[1725288043936,29.4136,132.85,132.74,47.52628969]
[1725288043937,21.8863,132.85,132.77,50.0]
[1725288044113,7.5301,132.8,132.76,6.0281]
[1725288044317,7.5296,132.81,132.75,68.8321]
[1725288044641,7.5296,132.81,132.76,9.03848924]
[1725288045222,8.76169298,132.83,132.78,50.0]
[1725288045455,7.5295,132.81,132.77,7.5314]
[1725288045618,8.76199298,132.82,132.77,1.50608952]
[1725288045941,8.76199298,132.82,132.77,7.5317]
[1725288046140,1.23299298,132.82,132.75,18.8321]
[1725288046331,1.23299298,132.82,132.76,1.50621614]
[1725288046728,7.5307,132.79,132.76,1.50621614]
[1725288047116,7.5313,132.78,132.73,7.5339]
[1725288047449,1.23299298,132.77,132.72,50.0]
[1725288047631,0.12549,132.79,132.72,1.50665732]
[1725288047825,7.5324,132.76,132.72,51.50665732]
[1725288048135,7.532,132.77,132.72,51.50665732]
[1725288048436,8.76539298,132.76,132.72,1.50665732]
[1725288049036,0.12549,132.75,132.7,50.0]
[1725288049237,0.12549,132.75,132.71,1.50689337]
[1725288049238,7.533,132.75,132.71,1.50689337]
[1725288049656,8.88958298,132.79,132.74,7.5334]
[1725288049853,1.23299298,132.79,132.74,9.03978256]
[1725288050140,1.23299298,132.79,132.73,18.8344]
[1725288050141,7.5318,132.77,132.73,18.8344]
[1725288050346,0.12549,132.78,132.71,57.535]
[1725288050347,8.76539298,132.76,132.71,57.535]
[1725288050513,8.76539298,132.76,132.72,1.50659935]
[1725288050717,8.76539298,132.76,132.72,9.04119935]
[1725288050933,7.5319,132.77,132.73,50.0]
[1725288051150,7.5319,132.77,132.72,7.5345]
[1725288051323,8.76439298,132.78,132.73,9.04007685]
[1725288051927,7.5322,132.77,132.72,26.3699]
[1725288052237,8.76539298,132.76,132.72,20.34188716]
[1725288052447,8.76539298,132.76,132.72,18.8353]
[1725288052631,8.76539298,132.76,132.72,20.34198093]
[1725288052963,8.76539298,132.76,132.72,18.8353]
[1725288053147,7.533,132.75,132.71,50.0]
[1725288053341,0.25098,132.77,132.7,1.50679973]
[1725288053652,7.5344,132.73,132.69,18.8404]
[1725288053950,7.5344,132.73,132.69,76.3767]
[1725288054148,7.5344,132.73,132.69,18.8404]
[1725288054746,7.5344,132.73,132.7,1.50694861]
[1725288055351,7.5351,132.72,132.7,1.50694861]
[1725288055535,7.5347,132.72,132.69,50.0]
[1725288055928,0.12549,132.75,132.69,50.0]
[1725288055929,7.5341,132.73,132.69,50.0]
[1725288056131,7.5341,132.73,132.7,1.50693771]
[1725288056640,20.19038298,132.76,132.69,50.0]
[1725288056641,1.23299298,132.76,132.72,50.0]
[1725288056843,15.08,132.77,132.72,50.0]
[1725288056844,16.31299298,132.77,132.73,1.50656171]
[1725288057045,1.23299298,132.76,132.7,57.5356]
[1725288057243,1.23299298,132.76,132.7,59.0422853]
[1725288057450,7.5319,132.77,132.72,50.0]
[1725288057756,7.5312,132.78,132.74,50.0]
[1725288057930,21.23299298,132.8,132.75,1.50637967]
[1725288058130,7.5319,132.77,132.74,50.0]
[1725288058454,7.5319,132.77,132.73,26.3682]
[1725288058637,7.5319,132.77,132.73,18.8344]
[1725288059351,7.5314,132.78,132.74,50.0]
[1725288060557,7.5307,132.79,132.76,50.0]
[1725288060858,7.5302,132.8,132.77,1.50615931]
[1725288061038,8.76359298,132.79,132.74,57.5334]
[1725288061234,8.76359298,132.79,132.73,18.8344]
[1725288061235,7.5319,132.77,132.73,68.8344]
[1725288061540,7.5313,132.78,132.73,76.3683]
[1725288061850,7.5313,132.78,132.74,1.50632001]
[1725288062359,1.23299298,132.77,132.73,50.0]
[1725288062529,7.5328,132.76,132.71,57.535]
[1725288062724,7.5329,132.75,132.71,57.535]
[1725288062951,7.5329,132.75,132.72,1.50658085]
[1725288063254,7.5336,132.74,132.72,1.50658085]
[1725288063453,7.5334,132.75,132.72,1.50658085]
[1725288063751,7.5335,132.74,132.72,1.50658085]
[1725288063929,7.5335,132.74,132.71,51.50674213]
[1725288064137,0.12549,132.75,132.71,50.0]
[1725288064346,0.25098,132.75,132.71,50.0]
[1725288064851,7.5358,132.7,132.67,50.0]
[1725288065069,47.65177969,132.73,132.65,50.0]
[1725288065234,7.5374,132.68,132.65,50.0]
[1725288066050,7.5375,132.67,132.64,18.8474]
[1725288066226,7.5381,132.66,132.63,50.0]
[1725288067157,7.5388,132.65,132.63,50.0]
[1725288067356,18.8448,132.67,132.61,50.0]
[1725288067567,37.6756,132.72,132.61,50.0]
[1725288067568,15.0898,132.74,132.66,50.0]
[1725288067854,15.0898,132.74,132.7,50.0]
[1725288068037,1.23299298,132.77,132.71,1.50683403]
[1725288068239,1.23299298,132.77,132.7,50.0]
[1725288068240,18.8313,132.76,132.7,50.0]
[1725288068443,7.5342,132.73,132.7,50.0]
[1725288068643,1.23299298,132.75,132.7,50.0]
[1725288068644,7.5339,132.74,132.71,1.50684935]
[1725288069135,7.5344,132.73,132.71,1.50683437]
[1725288069337,7.5347,132.72,132.68,57.5369]
[1725288069535,7.5341,132.73,132.7,50.0]
[1725288069730,1.23299298,132.77,132.72,50.0]
[1725288069959,7.5339,132.74,132.71,1.50664454]
[1725288070134,7.5339,132.74,132.7,50.0]
[1725288070471,1.23299298,132.76,132.69,18.8404]
[1725288071060,7.5355,132.71,132.68,50.0]
[1725288071264,7.5366,132.69,132.66,50.0]
[1725288071463,1.23299298,132.72,132.66,50.0]
[1725288071772,7.5359,132.7,132.67,1.50721303]
[1725288072142,7.5367,132.69,132.66,1.50721286]
[1725288072342,18.96439,132.71,132.64,50.0]
[1725288072551,1.35848298,132.7,132.64,50.0]
[1725288072750,18.96439,132.71,132.66,50.0]
[1725288072751,1.35848298,132.71,132.66,50.0]
[1725288072969,7.5359,132.7,132.67,1.50718892]
[1725288073150,7.5359,132.7,132.66,50.0]
[1725288073341,7.5365,132.69,132.66,50.0]
[1725288073944,7.537,132.68,132.64,57.5391]
[1725288074749,7.5351,132.72,132.69,50.0]
[1725288074969,1.23299298,132.74,132.67,57.5369]
[1725288075550,1.23299298,132.74,132.68,1.50696548]
[1725288075875,7.5356,132.71,132.67,50.0]
[1725288076260,7.5346,132.73,132.68,9.04373756]
[1725288076458,1.23299298,132.76,132.7,50.0]
[1725288076768,47.52628969,132.86,132.72,50.0]
[1725288076769,1.23299298,132.77,132.72,50.0]
[1725288076966,47.52628969,132.81,132.73,1.50653941]
[1725288076967,7.5325,132.76,132.73,1.50653941]
[1725288077349,7.5332,132.75,132.71,26.3727]
[1725288077744,7.5332,132.75,132.71,18.8375]
[1725288078472,7.5332,132.75,132.71,26.3727]
[1725288078650,1.23299298,132.78,132.72,51.50664084]
[1725288078854,1.23299298,132.81,132.75,7.5328]
[1725288079056,1.23299298,132.81,132.76,1.5062295]
[1725288079376,41.2227,132.82,132.77,1.50623235]
[1725288079377,1.23299298,132.82,132.77,1.50623235]
[1725288079567,7.5288,132.83,132.78,57.5311]
[1725288079753,8.76089298,132.84,132.79,9.03635683]
[1725288079956,7.5279,132.84,132.8,57.53]
[1725288080151,7.5279,132.84,132.81,1.50564256]
[1725288080366,7.5279,132.84,132.8,57.53]
[1725288080567,7.5279,132.84,132.8,50.0]
[1725288081053,1.23299298,132.85,132.8,50.0]
[1725288081257,1.23299298,132.85,132.81,1.5056524]
[1725288081258,7.5273,132.85,132.81,1.5056524]
[1725288081476,1.23299298,132.85,132.78,50.0]
[1725288081657,48.75928267,132.85,132.74,50.0]
[1725288081973,7.5313,132.78,132.72,57.5341]
[1725288082272,7.5319,132.77,132.72,57.5341]
[1725288082652,7.5313,132.78,132.74,50.0]
[1725288083460,7.5312,132.78,132.74,57.5333]
[1725288083657,7.5313,132.78,132.75,1.50637104]
[1725288083975,7.5307,132.79,132.75,1.50637104]
[1725288084371,7.5301,132.8,132.76,50.0]
[1725288084678,7.529,132.82,132.77,27.86676092]
[1725288084887,6.2218,132.85,132.78,50.0]
[1725288085055,6.2218,132.85,132.78,51.50604981]
[1725288085261,6.2218,132.85,132.78,59.03684981]
[1725288085262,7.5289,132.83,132.78,59.03684981]
[1725288085855,7.529,132.82,132.78,59.03684981]
[1725288086160,7.5285,132.83,132.8,50.0]
[1725288086371,7.5285,132.83,132.81,1.50570888]
[1725288086957,1.23299298,132.86,132.81,1.50570888]
[1725288087380,16.78269298,132.87,132.81,1.50570888]
[1725288087762,16.78269298,132.87,132.82,50.0]
[1725288087964,16.78269298,132.87,132.83,1.50547975]
[1725288088153,16.78269298,132.87,132.82,50.0]
[1725288088359,7.5279,132.84,132.82,50.0]
[1725288088990,7.5273,132.85,132.83,1.50556453]
[1725288089168,7.5273,132.85,132.82,50.0]
[1725288089584,7.5278,132.84,132.82,50.0]
[1725288089878,1.23299298,132.88,132.84,50.0]
[1725288090080,7.5271,132.86,132.81,57.5294]
[1725288090256,7.5273,132.85,132.81,50.0]
[1725288090457,7.5279,132.84,132.81,50.0]
[1725288090882,7.5274,132.85,132.81,50.0]
[1725288091070,7.5267,132.86,132.83,50.0]
[1725288091267,7.5273,132.85,132.81,57.5295]
[1725288091475,7.5296,132.81,132.78,50.0]
[1725288091664,7.5285,132.83,132.8,50.0]
[1725288092263,7.5279,132.84,132.8,57.53]
[1725288092461,7.5279,132.84,132.8,50.0]
[1725288092680,7.5279,132.84,132.8,57.53]
[1725288092861,7.5284,132.83,132.8,50.0]
[1725288093467,7.5293,132.82,132.78,50.0]
[1725288093664,7.5297,132.81,132.78,50.0]
[1725288093875,7.5301,132.8,132.78,50.0]
[1725288094769,18.94699,132.83,132.76,50.0]
[1725288094963,7.5308,132.79,132.76,50.0]
[1725288095987,7.5302,132.8,132.77,1.50605673]
[1725288096985,7.5286,132.83,132.8,50.0]
[1725288097193,7.5285,132.83,132.81,1.50569756]
[1725288097565,7.5289,132.82,132.81,1.50569756]
[1725288097779,1.23299298,132.86,132.82,50.0]
[1725288098092,7.5274,132.85,132.83,1.50539433]
[1725288098688,7.5268,132.86,132.83,1.50539433]
[1725288098894,7.5268,132.86,132.84,50.0]
[1725288099189,7.5267,132.86,132.85,1.50526901]
[1725288099400,7.5267,132.86,132.82,57.5288]
[1725288099571,7.5281,132.84,132.82,50.0]
[1725288099779,7.528,132.84,132.82,50.0]
[1725288100290,67.57498267,132.87,132.8,50.0]
[1725288100486,18.8188,132.85,132.81,1.50571263]
[1725288100667,20.0,132.84,132.81,1.50571263]
[1725288101188,1.23299298,132.83,132.78,50.0]
[1725288101395,1.23299298,132.83,132.76,50.0]
[1725288101685,7.5312,132.78,132.76,50.0]
[1725288102203,7.5308,132.79,132.76,50.0]
[1725288102388,7.5308,132.79,132.77,1.50608615]
[1725288102892,7.5308,132.79,132.76,50.0]
[1725288103069,7.5301,132.8,132.78,50.0]
[1725288103269,1.23299298,132.83,132.79,1.50585447]
[1725288103493,21.23299298,132.84,132.79,1.50585447]
[1725288104375,7.5295,132.81,132.79,1.50585447]
[1725288104699,21.23299298,132.84,132.79,1.50585447]
[1725288104889,1.23299298,132.87,132.82,50.0]
[1725288105071,7.5267,132.86,132.82,50.0]
[1725288105890,7.5276,132.85,132.83,1.50528212]
[1725288106199,7.5276,132.85,132.84,50.0]
[1725288106776,7.5276,132.85,132.82,50.0]
[1725288107180,7.5279,132.84,132.82,50.0]
[1725288107483,72.52238969,132.89,132.82,50.0]
[1725288107691,20.0,132.88,132.82,50.0]
[1725288108187,7.5273,132.85,132.82,50.0]
[1725288108484,20.0,132.88,132.84,50.0]
[1725288108485,7.5268,132.86,132.84,50.0]
[1725288109211,7.5272,132.85,132.84,50.0]
[1725288109694,7.5272,132.85,132.82,50.0]
[1725288110400,7.5278,132.84,132.82,50.0]
[1725288110768,7.5278,132.84,132.83,1.50546375]
[1725288110978,7.5278,132.84,132.82,50.0]
[1725288111175,7.5274,132.85,132.82,50.0]
[1725288111795,7.528,132.84,132.82,50.0]
[1725288112294,7.528,132.84,132.83,1.5054746]
[1725288112503,7.528,132.84,132.82,50.0]
[1725288112803,7.5271,132.86,132.84,50.0]
[1725288113044,7.5263,132.87,132.85,1.50527544]
[1725288113296,7.5267,132.86,132.85,1.50527544]
[1725288113506,7.5267,132.86,132.84,50.0]
[1725288113692,7.5263,132.87,132.84,50.0]
[1725288113886,7.5263,132.87,132.85,1.5051853]
[1725288114212,1.23299298,132.91,132.86,50.0]
[1725288114512,7.5299,132.81,132.78,50.0]
[1725288114679,7.5291,132.82,132.8,50.0]
[1725288114877,7.5291,132.82,132.81,1.50566776]
[1725288115380,18.8199,132.84,132.78,50.0]
[1725288115685,7.5304,132.8,132.78,51.50588502]
[1725288115887,7.5304,132.8,132.78,50.0]
[1725288116079,7.5296,132.81,132.8,50.0]
[1725288116398,7.5306,132.79,132.78,50.0]
[1725288116604,7.5306,132.79,132.76,50.0]
[1725288116819,7.5302,132.8,132.78,50.0]
[1725288117025,7.5297,132.81,132.78,50.0]
[1725288117322,7.5306,132.79,132.76,50.0]
[1725288117522,7.5313,132.78,132.76,50.0]
[1725288118210,7.5307,132.79,132.76,50.0]
[1725288119046,7.5313,132.78,132.76,50.0]
[1725288119321,7.5308,132.79,132.76,50.0]
[1725288119704,7.5302,132.8,132.76,50.0]
[1725288119903,7.5302,132.8,132.78,50.0]
[1725288120313,7.5306,132.79,132.78,50.0]
[1725288121042,18.8258,132.8,132.74,56.4758]
[1725288121323,18.8258,132.8,132.71,35.0436]
[1725288121324,7.5323,132.76,132.75,50.0]
[1725288121501,7.5319,132.77,132.75,50.0]
[1725288121699,48.75928267,132.79,132.73,50.0]
[1725288121904,7.5331,132.75,132.73,50.0]
[1725288122718,48.75928267,132.79,132.73,50.0]
[1725288122719,7.5325,132.76,132.73,50.0]
[1725288122901,7.5325,132.76,132.74,1.50654627]
[1725288123101,7.5325,132.76,132.73,50.0]
[1725288123902,7.533,132.75,132.73,50.0]
[1725288124201,7.5341,132.73,132.71,50.0]
[1725288124612,7.5346,132.72,132.71,50.0]
[1725288124809,7.5342,132.73,132.71,50.0]
[1725288125418,1.23299298,132.76,132.71,50.0]
[1725288125419,7.5346,132.72,132.71,50.0]
[1725288125616,7.5352,132.71,132.69,50.0]
[1725288125824,7.5357,132.7,132.67,75.1778]
[1725288126131,18.834,132.74,132.67,75.1778]
[1725288126132,7.5353,132.71,132.67,75.1778]
[1725288126301,7.5353,132.71,132.69,50.0]
[1725288126697,1.23299298,132.73,132.67,50.0]
[1725288126903,7.5368,132.69,132.67,50.0]
[1725288127607,7.5385,132.66,132.63,50.0]
[1725288127928,1.23299298,132.69,132.63,50.0]
[1725288128102,7.5385,132.66,132.65,50.0]
[1725288128508,7.5385,132.66,132.63,50.0]
[1725288128924,1.23299298,132.69,132.63,50.0]
[1725288129134,7.5395,132.64,132.61,50.0]
[1725288129425,1.23299298,132.67,132.61,50.0]